Cogmind - Beta 12 *** ADVENTURER MODE // 2024.02.06 @ 23:26:56 // AFD2019/Pay2Buy Player: Roxy Result: Self-destructed Performance ------------- Evolutions (4) 2000 Regions Visited (6) 1200 Robots Destroyed (70) 350 Value Destroyed (2557) 2557 Prototype IDs (3) 60 Alien Tech Used (0) 0 Bonus (949) 949 TOTAL SCORE: 7116 Bonus ------- High Alert Combat Kills 118 Follower Combat Kills 131 Entered Garrisons 200 Used RIF Installer 500 Cogmind --------- Core Integrity 736/850 Matter 120/300 Energy 275/275 System Corruption 0% Temperature Cool (0) Movement Core (250) Ox4 Location -6/Factory Parts ------- > --- POWER (2) -------- Deuterium Engine > --- PROPULSION (3) --- (None) > --- UTILITY (7) ------ Advanced Heat Sink Improved Signal Interpreter Transport Network Coupler Advanced Targeting Computer > --- WEAPON (3) ------- Mini Assault Cannon > --- INVENTORY (10) --- Sensor Array Peak State ------------ > --- POWER ------------ Deuterium Engine Heavy Deuterium Engine > --- PROPULSION ------- Improved Titanium Leg Improved Titanium Leg Improved Titanium Leg > --- UTILITY ---------- Advanced Heat Sink Improved Signal Interpreter Transport Network Coupler Advanced Targeting Computer > --- WEAPON ----------- Gauss Rifle Heavy Battle Rifle Mini Assault Cannon > --- INVENTORY -------- Sensor Array [Rating: 45] Favorites ----------- Power Heavy Deuterium Engine Engine Heavy Deuterium Engine Propulsion Improved Titanium Leg Leg Improved Titanium Leg Utility Transport Network Coupler Device Transmission Jammer Processor Transport Network Coupler Weapon Enhanced Autogun Ballistic Gun Enhanced Autogun Ballistic Cannon Mini Assault Cannon Build | -11 -10 -9 -8 -8 -7 -6 ------- Run | Jun Mat Mat Mat Gar Fac Fac Slots Evolved 8 | . . 2 2 . 2 2 Power 1 | . . . . . 1 . Propulsion 1 | . . . 1 . . . Utility 5 | . . 2 . . 1 2 Weapon 1 | . . . 1 . . . Parts Attached . | . . . . . . . Power . | . . . . . . . Engine . | . . . . . . . Core . | . . . . . . . Reactor . | . . . . . . . Propulsion . | . . . . . . . Treads . | . . . . . . . Leg . | . . . . . . . Wheel . | . . . . . . . Hover . | . . . . . . . Flight . | . . . . . . . Utility . | . . . . . . . Device . | . . . . . . . Storage . | . . . . . . . Processor . | . . . . . . . Hackware . | . . . . . . . Protection . | . . . . . . . Artifact . | . . . . . . . Weapon . | . . . . . . . Energy Gun . | . . . . . . . Energy Cannon . | . . . . . . . Ballistic Gun . | . . . . . . . Ballistic Cannon . | . . . . . . . Launcher . | . . . . . . . Special Weapon . | . . . . . . . Impact Weapon . | . . . . . . . Slashing Weapon . | . . . . . . . Piercing Weapon . | . . . . . . . Special Melee Weapon . | . . . . . . . Unidentified Prototypes . | . . . . . . . Parts Lost 16 | . . 3 . 4 4 5 Power 3 | . . 1 . 1 . 1 Propulsion 5 | . . . . 2 1 2 Utility 2 | . . . . 1 1 . Weapon 6 | . . 2 . . 2 2 Highest Loss Streak 5 | . . 1 . 2 2 5 To Critical Strikes . | . . . . . . . Average Slot Usage (%) 82 | . 84 86 72 86 79 70 Engine 11 | . 14 11 9 9 11 12 Leg 23 | . 28 22 18 26 21 11 Device 5 | . . 11 9 9 5 6 Processor 17 | . 12 22 18 18 17 20 Ballistic Gun 21 | . 28 20 18 23 17 11 Ballistic Cannon 1 | . . . . . 3 6 Naked Turns . | . . . . . . . Heaviest Build 33 | 11 12 16 16 22 33 33 Greatest Support 60 | 20 20 20 20 60 60 40 Greatest Overweight (x) 5 | . . . . 5 . . Average Overweight (x) . | . . . . . . . Largest Inventory Capacity 10 | 10 10 10 10 10 10 10 Average Capacity 10 | 10 10 10 10 10 10 10 Most Carried 1 | . . 1 1 1 1 1 Average Carried . | . . . 1 1 1 1 Final Capacity 10 | 10 10 10 10 10 10 10 Final Carried 1 | . . 1 1 1 1 1 Class Distribution -------------------- 42% | Mutant 40% | Skirmisher 16% | Gunner Dominant Class ---------------- Mutant | -10/Materials Skirmisher | -9/Materials Skirmisher | -8/Materials Skirmisher | -8/Garrison Gunner | -7/Factory Gunner | -6/Factory Resources | -11 -10 -9 -8 -8 -7 -6 ----------- Run | Jun Mat Mat Mat Gar Fac Fac Matter Collected 1598 | . 380 207 . 519 489 3 Remotely . | . . . . . . . Salvage Created 2708 | . 513 558 . 1029 561 47 Parts . | . . . . . . . Haulers Intercepted . | . . . . . . . Recyclers Shooed . | . . . . . . . Parts Field Recycled . | . . . . . . . Retrieved Matter . | . . . . . . . Parts Self-Destructed . | . . . . . . . Prevented . | . . . . . . . Kills | -11 -10 -9 -8 -8 -7 -6 ------- Run | Jun Mat Mat Mat Gar Fac Fac Combat Hostiles Destroyed 63 | . 13 15 . 22 12 1 Guns 62 | . 13 15 . 22 11 1 Cannons 1 | . . . . . 1 . Classes Destroyed 8 | . 3 1 . 3 1 . Operator 1 | . . . . . 1 . Watcher 6 | . 3 1 . . 2 . Swarmer 13 | . 3 4 . 3 3 . Grunt 33 | . 10 9 . 10 4 . Duelist 1 | . . . . 1 . . Sentry 10 | . . 2 . 6 2 . Hunter 2 | . . . . 1 1 . Programmer 4 | . . . . 1 2 1 Best Kill Streak 5 | . 4 5 . 4 4 1 Combat Bots Only 5 | . 4 5 . 4 3 1 Max Kills in Single Turn 2 | . 2 2 . 1 1 1 Gunslinging 1 | . 1 1 . . . . Exploded . | . . . . . . . Melee . | . . . . . . . Uniques/NPCs Destroyed . | . . . . . . . Combat | -11 -10 -9 -8 -8 -7 -6 -------- Run | Jun Mat Mat Mat Gar Fac Fac Damage Taken 2457 | . 366 323 . 837 503 428 Core 412 | . 100 52 . 73 73 114 Absorbed by Shields . | . . . . . . . Core Remaining (%) 84 | 100 60 87 . 86 89 . Volleys Fired 195 | . 30 44 . 60 49 12 Largest 3 | . 2 2 . 3 3 3 Hottest 109 | . 46 50 . 78 109 109 Shots Fired 432 | . 60 75 . 136 133 28 Gun 402 | . 60 75 . 136 115 16 Cannon 30 | . . . . . 18 12 Launcher . | . . . . . . . Special . | . . . . . . . Kinetic 432 | . 60 75 . 136 133 28 Thermal . | . . . . . . . Explosive . | . . . . . . . Electromagnetic . | . . . . . . . Robot Hit Streak 21 | . 16 11 . 16 21 7 Robot Miss Streak 3 | . 2 2 . 2 3 3 Penetration Max 1 | . . . . 1 . . Secondary Targets 11 | . 2 2 . 7 . . Max Gunslinging Chain 1 | . 1 1 . 1 . . Shots Hit Robots 319 | . 44 54 . 109 95 17 Core Hits 121 | . 19 22 . 46 28 6 Critical Kills 1 | . 1 . . . . . Critical Parts Destroyed 7 | . . 3 . 1 3 . Critical Strikes 9 | . 1 3 . 1 4 . Destroy 8 | . 1 3 . 1 3 . Blast 1 | . . . . . 1 . Melee Attacks . | . . . . . . . Impact . | . . . . . . . Slashing . | . . . . . . . Piercing . | . . . . . . . Sneak Attacks . | . . . . . . . Combat Hostiles . | . . . . . . . Follow-up Attacks . | . . . . . . . Damage Inflicted 5320 | . 680 898 . 1894 1404 444 Guns 4942 | . 680 898 . 1894 1217 253 Cannons 378 | . . . . . 187 191 Explosions . | . . . . . . . Melee . | . . . . . . . Ramming . | . . . . . . . Kinetic 5320 | . 680 898 . 1894 1404 444 Thermal . | . . . . . . . Explosive . | . . . . . . . Electromagnetic . | . . . . . . . Impact . | . . . . . . . Slashing . | . . . . . . . Piercing . | . . . . . . . Highest Corruption 1 | . . . . 1 1 . Average Corruption 1 | . . . . 1 1 . Corruption Purged . | . . . . . . . Corruption Blocked . | . . . . . . . Effects 1 | . . . . . 1 . Energy Discharges 1 | . . . . . 1 . Overload Shots . | . . . . . . . Overflow Damage 12 | . . . . . . 12 Projectiles 12 | . . . . . . 12 Explosions . | . . . . . . . Melee . | . . . . . . . Knockbacks 3 | . . . . . . 3 Impact . | . . . . . . . Kinetic 3 | . . . . . . 3 Secondary . | . . . . . . . Self-Inflicted Damage . | . . . . . . . Shots . | . . . . . . . Rammed . | . . . . . . . Targets Rammed . | . . . . . . . Kicked . | . . . . . . . Crushed . | . . . . . . . Highest Temperature 249 | . 22 20 . 214 249 11 Average Temperature 55 | . 4 6 . 49 93 4 Received Heat Transfer 1017 | . 156 162 . 414 123 162 Effects 2 | . . . . . 2 . Interference 2 | . . . . . 2 . Siege Activations . | . . . . . . . Robots Corrupted . | . . . . . . . Combat Hostiles . | . . . . . . . Parts Fried . | . . . . . . . Impact Corruptions . | . . . . . . . Robots Melted . | . . . . . . . Combat Hostiles . | . . . . . . . Parts Melted . | . . . . . . . Heat Transferred . | . . . . . . . Parts Sabotaged . | . . . . . . . Parts Stolen . | . . . . . . . Parts Stripped . | . . . . . . . Power Chain Reactions . | . . . . . . . Missiles Intercepted . | . . . . . . . Alert | -11 -10 -9 -8 -8 -7 -6 ------- Run | Jun Mat Mat Mat Gar Fac Fac Peak Influence 554 | . 256 407 75 554 475 156 Initial 251 | . . 19 75 42 251 46 Average 233 | . 88 200 75 363 305 84 Maximum Alert Level 2 | . 1 2 . 2 2 . Low Security (%) 50 | 100 89 59 100 26 21 100 Level 1 25 | . 10 37 . 13 50 . Level 2 23 | . . 2 . 59 28 . Level 3 . | . . . . . . . Level 4 . | . . . . . . . Level 5 . | . . . . . . . High Security . | . . . . . . . Max Security . | . . . . . . . Squads Dispatched 11 | . 2 3 . . 4 2 Investigation 5 | . 2 2 . . 1 . Extermination 2 | . . . . . 2 . Reinforcement 3 | . . 1 . . 1 1 Assault . | . . . . . . . Garrison 1 | . . . . . . 1 Intercept . | . . . . . . . Searches Triggered . | . . . . . . . Construction Impeded . | . . . . . . . Haulers Reinforced . | . . . . . . . Active Scanning Responses . | . . . . . . . Cargo Convoy Interrupts . | . . . . . . . Stealth | -11 -10 -9 -8 -8 -7 -6 --------- Run | Jun Mat Mat Mat Gar Fac Fac Distress Signals 4 | . . 3 . . 1 . Communications Jammed . | . . . . . . . Distress Signals . | . . . . . . . Times Spotted 88 | . 20 18 . 23 16 11 Peak Tracking Total 6 | . 4 5 . 5 3 6 Tactical Retreats 3 | . 1 . . 2 . . Traps | -11 -10 -9 -8 -8 -7 -6 ------- Run | Jun Mat Mat Mat Gar Fac Fac Traps Triggered 7 | . 3 . . 3 1 . Indirectly . | . . . . . . . Trap Hack Attempts . | . . . . . . . Triggered . | . . . . . . . Disarmed . | . . . . . . . Reprogrammed . | . . . . . . . Reused . | . . . . . . . Traps Extracted . | . . . . . . . Installed . | . . . . . . . Triggered . | . . . . . . . Machines | -11 -10 -9 -8 -8 -7 -6 ---------- Run | Jun Mat Mat Mat Gar Fac Fac Machines Disabled 4 | . 1 . . . 3 . Max in Single Turn 1 | . 1 . . . 1 . Machines Repaired . | . . . . . . . Machines Sabotaged . | . . . . . . . Overloaded Fab Kills . | . . . . . . . Hacking | -11 -10 -9 -8 -8 -7 -6 --------- Run | Jun Mat Mat Mat Gar Fac Fac Machines Accessed 23 | . 7 3 1 3 5 4 Terminals 22 | . 7 3 . 3 5 4 Fabricators . | . . . . . . . Repair Stations . | . . . . . . . Recycling Units . | . . . . . . . Scanalyzers . | . . . . . . . Garrison Access 1 | . . . 1 . . . Total Hacks 45 | . 12 9 1 5 9 9 Successful 11 | . 1 2 1 1 3 3 Failed 34 | . 11 7 . 4 6 6 Catastrophic 11 | . 4 1 . . 3 3 Database Lockouts . | . . . . . . . Manual 32 | . 12 7 . 2 5 6 Terminals 44 | . 12 9 . 5 9 9 Fabricators . | . . . . . . . Repair Stations . | . . . . . . . Recycling Units . | . . . . . . . Scanalyzers . | . . . . . . . Garrison Access 1 | . . . 1 . . . Terminal Hacks 10 | . 1 2 . 1 3 3 Record 2 | . . . . . . 2 Robot Schematic 1 | . . 1 . . . . Robot Analysis 1 | . . . . . 1 . Terminal Index 3 | . 1 1 . . . 1 Fabricator Index 1 | . . . . . 1 . Unreport Threat 1 | . . . . . 1 . Garrison Registry 1 | . . . . 1 . . Fabricator Hacks . | . . . . . . . Repair Station Hacks . | . . . . . . . Recycling Unit Hacks . | . . . . . . . Scanalyzer . | . . . . . . . Garrison Access Hacks 1 | . . . 1 . . . Unlock Access 1 | . . . 1 . . . Unauthorized Hacks . | . . . . . . . Terminals . | . . . . . . . Fabricators . | . . . . . . . Repair Stations . | . . . . . . . Recycling Units . | . . . . . . . Scanalyzers . | . . . . . . . Garrison Access . | . . . . . . . Data Cores Recovered 2 | . . . . . 1 1 Used . | . . . . . . . Hacking Detections 19 | . 7 3 1 2 3 3 Full Trace Events 4 | . 1 2 . . 1 . Feedback Events . | . . . . . . . Feedback Blocked . | . . . . . . . Robot Schematics Acquired 1 | . . 1 . . . . Robots Built . | . . . . . . . Authchips . | . . . . . . . Time . | . . . . . . . Total Robot Build Rating . | . . . . . . . Part Schematics Acquired . | . . . . . . . Parts Built . | . . . . . . . Authchips . | . . . . . . . Time . | . . . . . . . Total Part Build Rating . | . . . . . . . Parts Repaired . | . . . . . . . Time . | . . . . . . . Parts Recycled . | . . . . . . . Recycled Matter . | . . . . . . . Retrieved Matter . | . . . . . . . Retrieved Components . | . . . . . . . Parts Scanalyzed . | . . . . . . . Part Schematics Acquired . | . . . . . . . Parts Damaged . | . . . . . . . Bothacking | -11 -10 -9 -8 -8 -7 -6 ------------ Run | Jun Mat Mat Mat Gar Fac Fac Used RIF Installer 1 | . . . . 1 . . Robots Hacked . | . . . . . . . Non-combat . | . . . . . . . Combat . | . . . . . . . Robot Hacks Applied . | . . . . . . . Relay Couplers Released . | . . . . . . . Fabnet Peak Effective % . | . . . . . . . Robots Rewired . | . . . . . . . Allies Hacked . | . . . . . . . Hacks Repelled . | . . . . . . . Allies | -11 -10 -9 -8 -8 -7 -6 -------- Run | Jun Mat Mat Mat Gar Fac Fac Total Allies 3 | . . . . . 3 . Largest Group 3 | . . . . . 3 3 Highest-Rated Group 93 | . . . . . 93 93 Highest-Rated Ally 31 | . . . . . 31 31 Total Orders . | . . . . . . . Ally Attacks 27 | . . . . . . 27 Total Damage 375 | . . . . . . 375 Kills 5 | . . . . . . 5 Allies Corrupted . | . . . . . . . Allies Melted . | . . . . . . . Intel | -11 -10 -9 -8 -8 -7 -6 ------- Run | Jun Mat Mat Mat Gar Fac Fac Robot Analysis Total 1 | . . . . . 1 . Derelict Logs Recovered . | . . . . . . . Drone Launches . | . . . . . . . Drone Recoveries . | . . . . . . . Exploration | -11 -10 -9 -8 -8 -7 -6 ------------- Run | Jun Mat Mat Mat Gar Fac Fac Turns Passed 3474 | 21 879 425 10 872 1014 253 Spaces Moved 2298 | 18 620 249 9 564 674 164 Core 1 | . . . . 1 . . Treads . | . . . . . . . Legs 2297 | 18 620 249 9 563 674 164 Wheels . | . . . . . . . Hover . | . . . . . . . Flight . | . . . . . . . Fastest Speed 120 | 120 120 120 120 120 130 130 Average Speed 126 | 120 120 120 120 129 130 130 Slowest Speed 300 | 120 120 120 120 300 130 130 Overloaded Moves . | . . . . . . . Propulsion Burnouts . | . . . . . . . Robots Hopped . | . . . . . . . Cave-ins Triggered . | . . . . . . . Exploration Rate (%) 30 | 3 92 29 3 59 21 5 Regions Visited 6 Branch Regions . Pre-discovered Areas . | . . . . . . . Known Exits Taken 3 | . . 1 1 . 1 . Unknown Exits Taken 2 | 1 1 . . . . . Scrap Searched . | . . . . . . . Spaces Dug . | . . . . . . . Terrain Destroyed 7 | . . . . . 4 3 Melee . | . . . . . . . Projectile 7 | . . . . . 4 3 AOE . | . . . . . . . Terrain Rammed . | . . . . . . . Walls Destroyed . | . . . . . . . Machines Disabled . | . . . . . . . Actions | -11 -10 -9 -8 -8 -7 -6 --------- Run | Jun Mat Mat Mat Gar Fac Fac Total 2562 | 17 695 310 8 627 727 178 Wait 73 | . 46 17 . 3 5 2 Move 2292 | 17 619 248 8 563 673 164 Hop . | . . . . . . . Pick Up . | . . . . . . . Fast Attach . | . . . . . . . Attach . | . . . . . . . Detach 1 | . . 1 . . . . Swap . | . . . . . . . Drop . | . . . . . . . Fire 195 | . 30 44 . 60 49 12 Melee . | . . . . . . . Ram . | . . . . . . . Kick . | . . . . . . . Crush . | . . . . . . . Escape Stasis 1 | . . . . 1 . . Rewire . | . . . . . . . Trap . | . . . . . . . Miscellaneous . | . . . . . . . Route ------- -11/Junkyard -10/Materials (discovered 5 exits: *Mat x3 / [*Min x2]) -9/Materials -8/Materials -8/Garrison (discovered 3 exits: *Fac x3) -7/Factory (discovered 2 exits: *Fac x2) -6/Factory History --------- Turn | Location | Event 7 | -11/Junkyard | Discovered new exit (range 13) 22 | -11/Junkyard | Entered Materials 44 | -10/Materials | Discovered new exit (range 15) 96 | -10/Materials | Discovered new exit (range 5) 207 | -10/Materials | Discovered new exit (range 14) 308 | -10/Materials | Build established: Mutant 363 | -10/Materials | Discovered new exit (range 7) 645 | -10/Materials | Discovered new exit (range 14) 901 | -10/Materials | Entered another Materials area 901 | -9/Materials | Evolved 2 slots: Utility x2 1307 | -9/Materials | Discovered new exit (range 16) 1324 | -9/Materials | Identified exit to Materials 1326 | -9/Materials | Entered another Materials area 1326 | -8/Materials | Evolved 2 slots: Propulsion x1, Weapon x1 1332 | -8/Materials | Identified exit to Garrison 1336 | -8/Materials | Entered Garrison 1440 | -8/Garrison | Triggered checkpoint 1516 | -8/Garrison | Triggered checkpoint 1564 | -8/Garrison | Triggered checkpoint 1635 | -8/Garrison | Spotted B-75 Beast 1882 | -8/Garrison | Discovered new exit (range 8) 1890 | -8/Garrison | Identified exit to Factory 1974 | -8/Garrison | Build established: Skirmisher 1985 | -8/Garrison | Discovered exit to Factory (range 47) 1985 | -8/Garrison | Discovered exit to Factory (range 19) 1985 | -8/Garrison | Discovered exit to Factory (range 51) 2002 | -8/Garrison | Triggered checkpoint 2068 | -8/Garrison | Triggered checkpoint 2130 | -8/Garrison | Installed Relay Interface Framework 2208 | -8/Garrison | Entered Factory 2208 | -7/Factory | Evolved 2 slots: Power x1, Utility x1 2936 | -7/Factory | Discovered new exit (range 7) 2944 | -7/Factory | Identified exit to Factory 3120 | -7/Factory | Allied Derelicts emerged from ambush trap array 3133 | -7/Factory | Build established: Gunner 3138 | -7/Factory | Discovered exit to Factory (range 11) 3222 | -7/Factory | Entered another Factory area 3222 | -6/Factory | Accompanied by 3 allies 3222 | -6/Factory | Evolved 2 slots: Utility x2 3429 | -6/Factory | Garrison activated, responded to threat 3475 | -6/Factory | Self-destructed Last Messages --------------- G-50 Soldier destroyed. Connecting with Terminal... Imp. Titanium Leg destroyed. ZB-QKW(g) triggered Ambush Trap. L-41 Fighter emerges from a hatch in the floor. S-27 Virus emerges from a hatch in the floor. Hvy. Deuterium Engine destroyed. Imp. Titanium Leg destroyed. ZB-QKW(g) destroyed. P-60 Hacker destroyed. K-01 Serf collects debris. Critical hit (Burn: +37). 4Z-RDD(g) destroyed. K-01 Serf destroyed. Destroyed Imp. Melee Analysis Suite. L-41 Fighter knocked back. K-01 Serf destroyed. L-41 Fighter knocked back. Hvy. Battle Rifle destroyed. S-27 Virus destroyed. Map ----- +----------------------------------------------------+ | ?????????????????????????????????????????????????? | | ?????????????????????????????????????????????????? | | ?????????????????????????????????????????????????? | | ?????????????????????????????????????????????????? | | ?????????????????????????????????????????????????? | | ?????????????????????????????????????????????????? | | ?????????????????????????????????????????????????? | | ?????????????????????????????????????????????????? | | ?????????????????????????????????????????????????? | | ?????????????????????????????????????????????????? | | ?????????????????????????????????????????????????? | | ?????????????????????????????????????????????????? | | ?????????????????????????????????????????????????? | | ????????????????????????????????????????????"????? | | ????????????????????????????????????????????"????? | | ????????????????????????????????????????????""???? | | ??????????????????????????????????????????? ?? | | ??????????????????????????????????????????? """ ?? | | ??????????????????????????????????????????? """??? | | ???????????????# ????????????????#########? """??? | | ????????????#####;#####+######+### #? ???? | | ??????????? % %% ##+###### | | ??????????? g % % s | | ?????????? g % | | ?????????? l% | | ?????????? % @%% g ######### | | ?????????????????#########;###+### #???????? | | ????????????????????????# ### ########### | | ????????????????????????#" """" #?# # | | ????????????????????????#" """" #?# + """"""""" | | ????????????????????????#" """" #?# # | | ????????????????????????#T """" #?# # ""T"" | | ????????????????????????#" """" #?# # """"" | | ????????????????????????#" """" #?# ########### | | ????????????????????????#" """" #?# #??????? | | ????????????????????????# #?# #??????? | | ????????????????????????######?###?# #??????? | | ??????????????????????????????#######"###+###????? | | ??????????????????????????????# #????? | | ??????????????????????????????# #????? | | ??????????????????????????????# """ """ #????? | | ??????????????????????????????# """ """ #????? | | ??????????????????????????????# """ """ #????? | | ??????????????????????????????? #????? | | ???????????????????????????????##############????? | | | | | | | | | | | +----------------------------------------------------+ Best States ------------- Heat Dissipation 56 Energy Generation 27 Energy Capacity 485 Matter Stores 300 Matter Capacity 300 Sight Range 16 Robot Scan Range 15 Terrain Scan Density 10 Jamming Range 12 Resistance: KI 20 Resistance: TH 20 Resistance: EX 20 Resistance: EM 20 Resistance: I 20 Resistance: S 20 Resistance: P 20 Evasion (%) 55 Targeting Accuracy 8 Offensive Hacking 10 Item Schematics ----------------- None Robot Schematics ------------------ O-16 Technician | -9/Materials | Hacked Fabricated ------------ Nothing Alien Tech Used ----------------- None Achievements -------------- None Challenges ------------ None Cogshop Purchases (23) ------------------------ Ion Engine (599) Aluminum Leg (599) Aluminum Leg (599) Hvy. Assault Rifle (699) Hvy. Assault Rifle (699) Transport Network Coupler (547) Sensor Array (Loot Box) Imp. Signal Interpreter (758) Deuterium Engine (767) Imp. Sensor Array (757) Enh. Autogun (1047) Enh. Autogun (1047) Imp. Titanium Leg (829) Imp. Titanium Leg (829) Imp. Titanium Leg (829) Transmission Jammer (842) Hvy. Deuterium Engine (917) Gauss Rifle (1167) Deuterium Engine (1032) Mni. Assault Cannon (802) Hvy. Battle Rifle (1525) Adv. Heat Sink (1027) Adv. Targeting Computer (758) Game ------ Seed SwarmGravitySubcomponent Manual? 0 Play Time 00:36:20 Cumulative 27.4 hours Start 2024.02.06 @ 22:47:45 End 2024.02.06 @ 23:26:56 Sessions 1 Manual Loads 0 Difficulty Adventurer Special Mode AFD2019/Pay2Buy Game No. 35 Rogue 26 Adventurer 9 Explorer 0 Win Type - Total 0 Types 0/0/0/0/0/0/0/0/0 Lore% 23 Gallery% 31 Achievement% 23 Wizard Run 0 Options --------- ASCII 0 Keyboard 0 Movement Mouse Keybinds 0 Fullscreen 1 Font 18/SmallcapsGlow Map View 76x50 Tactical HUD 0 Map Filters NONE Filters NONE Steam 1 RUN: 99195f8e-e503-4d3d-84db-24903a423094